fUSD/lending_fUSD_20260128
["ID","MTS","AMOUNT","RATE_DAILY","PERIOD"]
[403884944,1769627447713,-1762.00060636,0.00043444,2]
[403884945,1769627447722,-158.9,0.00043444,120]
[403884946,1769627447731,-625.76,0.00043444,120]
[403884947,1769627447740,-1309.25,0.00043444,120]
[403884948,1769627447749,-503.0356947,0.00043447,120]
[403884949,1769627447760,-1496.9643053,0.00043447,120]
[403884950,1769627447770,-200.0,0.00043451,120]
[403884951,1769627447778,-253.0,0.000435,43]
[403884952,1769627447788,-4069.77402337,0.00043513,30]
[403884953,1769627447800,-3065.82931984,0.00043513,30]
[403884954,1769627447812,-490.0,0.00043513,30]
[403884955,1769627447823,-29373.67203987,0.00043513,30]
[403884956,1769627447834,-36999.27538308,0.00043513,30]
[403884957,1769627447846,-36999.27538308,0.00043513,30]
[403884958,1769627447857,-36999.27538308,0.00043513,30]
[403884959,1769627447866,-36999.27538308,0.00043513,30]
[403884960,1769627447875,-377.89666009,0.00043513,30]
[403884961,1769627447884,-377.89666009,0.00043513,30]
[403884962,1769627447894,-422.38585979,0.00043514,120]
[403884963,1769627447903,-510.46289227,0.00043514,120]
[403884964,1769627447913,-500.0,0.00043514,7]
[403884965,1769627447923,-500.0,0.00043514,120]
[403884966,1769627447933,-500.0,0.00043514,120]
[403884967,1769627447943,-226.21864577,0.00043514,120]
[403884968,1769627447952,-500.0,0.00043514,30]
[403884969,1769627447963,-500.0,0.00043517,7]
[403884970,1769627447972,-500.0,0.00043517,7]
[403884971,1769627447983,-471.0960947,0.00043517,7]
[403884972,1769627447992,-530.69689131,0.00043517,120]
[403884973,1769627448002,-2061.0,0.00043519,30]
[403884974,1769627448011,-50000.0,0.00043543,51]
[403884975,1769627448023,-22760.93375,0.00043543,53]
[403884976,1769627448035,-259.19169647,0.00043543,53]
[403884977,1769627448049,-2493.1,0.00043543,53]
[403884978,1769627448062,-649.83334176,0.00043543,53]
[403884979,1769627448073,-713.13,0.00043543,53]
[403884980,1769627448084,-403.92,0.00043543,53]
[403884981,1769627448097,-1405.08006027,0.00043543,53]
[403884982,1769627448108,-8974.99999999,0.00043543,53]
[403884983,1769627448119,-430.4257349,0.00043543,53]
[403884984,1769627448131,-372.86839505,0.00043543,53]
[403884985,1769627448142,-591.46997237,0.00043543,53]
[403884986,1769627448203,-151.0,0.00016288,2]
[403884987,1769627448213,-250.0,0.00017646,2]
[403884988,1769627448223,-2332.23488837,0.00043543,53]
[403884989,1769627448233,-490.54038342,0.00043543,53]
[403884990,1769627448244,-1568.87017026,0.00043543,53]
[403884991,1769627448255,-3495.83514778,0.00043543,53]
[403884992,1769627448266,-888.0,0.00043543,53]
[403884993,1769627448277,-2169.56645936,0.00043543,53]
[403884994,1769627448288,-2913.12018298,0.00043543,45]
[403884995,1769627448299,-31188.58448811,0.00043543,45]
[403884996,1769627448311,-434.0568,0.00043543,45]
[403884997,1769627448322,-3016.57165071,0.00043543,45]
[403884998,1769627448334,-2791.43,0.00043543,45]
[403884999,1769627448347,-322.8916,0.00043543,45]
[403885000,1769627448363,-151.0,0.000421,30]
[403885001,1769627448372,-9333.3452782,0.00043543,45]
[403885002,1769627448381,-50000.0,0.00043543,47]
[403885003,1769627448391,-799.82215651,0.00043544,120]
[403885007,1769627708102,3356.83271,7.945e-05,2]
[403885099,1769628435487,260.05917967,0.000101,2]
[403885104,1769628497353,131.00874145,0.0001,2]
[403885105,1769628497373,1802.14707887,0.0001,2]
[403885106,1769628499181,391.83202451,7.888e-05,2]
[403885108,1769628508849,2737.98523671,0.0001,2]
[403885168,1769628518683,5068.03565991,0.0001,2]
[403885169,1769628518703,10000.0,0.0001,2]
[403885170,1769628518723,2067.81098291,0.0001,2]
[403885196,1769628571153,-1596.839999,0.000149,2]
[403885197,1769628571173,-3707.076997,0.0001616,2]
[403885204,1769628631675,-151.0,0.00016071,2]
[403885206,1769628631685,-151.0,0.00016085,2]
[403885208,1769628631696,-285.0,0.00016085,2]
[403885209,1769628631705,-151.0,0.00016086,2]
[403885210,1769628631715,-27.050346,0.0001616,2]
[403885211,1769628631725,-150.00336122,0.0001616,2]
[403885212,1769628631735,-725.54282733,0.000162,5]
[403885213,1769628631748,-580.36061433,0.000162,5]
[403885214,1769628631759,-770.50483516,0.000162,5]
[403885215,1769628631771,-588.77586808,0.000162,5]
[403885216,1769628631782,-2073.29589676,0.000162,5]
[403885217,1769628631795,-261.51995834,0.000162,5]
[403885218,1769628631805,-495.19096835,0.00016315,2]
[403885219,1769628631817,-305.02903165,0.00016315,2]
[403885220,1769628631826,-1200.0,0.00016912,2]
[403885221,1769628631836,-3301.27094835,0.00016913,2]
[403885222,1769628631848,-7799.06905165,0.00016913,2]
[403885223,1769628631857,-1000.0,0.00017175,2]
[403885224,1769628631867,-150.00336122,0.00017499,2]
[403885225,1769628631876,-219.14155251,0.00017581,2]
[403885226,1769628631886,-500.0,0.00017581,2]
[403885227,1769628631898,-500.0,0.00017581,2]
[403885228,1769628631908,-238.24991593,0.00017581,2]
[403885229,1769628631922,-32942.3988,0.00017582,2]
[403885230,1769628631932,-1000.0,0.00017582,2]
[403885231,1769628631941,-195.0,0.00017774,2]
[403885232,1769628631951,-500.0,0.00017897,2]
[403885233,1769628631960,-500.0,0.00017897,2]
[403885234,1769628631969,-500.0,0.00017898,2]
[403885235,1769628631979,-500.0,0.00017899,2]
[403885236,1769628631989,-202.6665997,0.000179,2]
[403885237,1769628631998,-1196.74181222,0.000179,2]
[403885239,1769628632008,-916.5319787,0.000179,2]
[403885241,1769628632017,-190.19209598,0.000179,3]
[403885243,1769628632027,-916.53197861,0.00017907,2]
[403885245,1769628632038,-916.53197861,0.00017913,2]
[403885247,1769628632048,-916.53197861,0.0001792,2]
[403885249,1769628632059,-916.53197861,0.00017927,2]
[403885251,1769628632069,-916.53197861,0.00017933,2]
[403885253,1769628632080,-916.53197861,0.0001794,2]
[403885255,1769628632092,-916.53197861,0.00017947,2]
[403885257,1769628632102,-916.53197861,0.00017953,2]
[403885259,1769628632112,-916.53197861,0.0001796,2]
[403885261,1769628632121,-165.31,0.0001799,2]
[403885263,1769628632131,-233.40779709,0.0001799,2]
[403885265,1769628632143,-152.21,0.0001799,2]
[403885267,1769628632152,-152.21,0.0001799,2]
[403885269,1769628632162,-152.21,0.0001799,2]
[403885271,1769628632172,-152.21,0.0001799,2]
[403885273,1769628632182,-152.21,0.0001799,2]
[403885275,1769628632191,-152.21,0.0001799,2]
[403885277,1769628632201,-150.0,0.00017992,2]
[403885279,1769628632210,-150.0,0.00017992,2]
[403885281,1769628632220,-150.0,0.00017992,2]
[403885284,1769628632230,-168.0,0.00017992,2]
[403885286,1769628632239,-93055.16142909,0.00018,2]
[403885288,1769628632251,-867.29465335,0.00018,2]
[403885290,1769628632262,-339.75260614,0.00018,2]
[403885292,1769628632274,-276.65889505,0.00018,2]
[403885294,1769628632286,-1077.12332908,0.00018,2]
[403885297,1769628632298,-1468.67056078,0.00018,2]
[403885299,1769628632310,-311.245,0.00018,2]
[403885301,1769628632321,-974.17884844,0.00018,2]
[403885485,1769628637764,-581.1401268,0.00018,2]
[403885486,1769628637775,-10376.46148974,0.00018,2]
[403885487,1769628637910,-141.7999999,0.00018,2]
[403885488,1769628637928,-1931.45747354,0.00018,2]
[403885680,1769628639901,-360.874,0.00018,2]
[403885684,1769628639914,-4382.94454847,0.00018,2]
[403885687,1769628639925,-6919.86445026,0.00018,2]
[403885691,1769628639954,-502.1,0.00018,2]
[403885698,1769628640011,-496.37601183,0.00018,2]
[403885713,1769628640277,-763.45759774,0.00018,2]
[403885905,1769628643812,-151.0,0.00016285,2]
[403885906,1769628643822,-245.19623533,0.000179,2]
[403885922,1769628646174,-651.0,0.000179,2]
[403885923,1769628646186,-425.30421945,0.000179,2]
[403885924,1769628646195,-107963.32276151,0.00018,2]
[403885925,1769628646218,-3984.31623393,0.00018,2]
[403885926,1769628646276,-311.11452737,0.00018,2]
[403885927,1769628646288,-2697.77897292,0.00018,2]
[403885928,1769628646305,-9290.67953845,0.00018,2]
[403885930,1769628646316,-446.15389658,0.00018,2]
[403885936,1769629028121,3972.462286,7.945e-05,2]
[403885950,1769629832549,-166.66,0.00015972,2]
[403885951,1769629832565,-151.0,0.00016228,2]
[403885952,1769629832577,-151.0,0.00016234,2]
[403885953,1769629832590,-151.0,0.00016239,2]
[403885954,1769629832602,-150.00325586,0.00016245,2]
[403885955,1769629832613,-166.66,0.00016308,2]
[403885956,1769629832624,-480.0,0.00016372,2]
[403885957,1769629832635,-173.70038922,0.00016373,2]
[403885958,1769629832647,-37.58097874,0.00016373,2]
[403885959,1769629832702,-462.41902126,0.00016373,2]
[403885960,1769629832716,-500.0,0.00016373,2]
[403885961,1769629832729,-500.0,0.00016373,2]
[403885962,1769629832740,-500.0,0.00016373,2]
[403885963,1769629832752,-278.24022797,0.00016373,2]
[403885964,1769629832762,-568.76226412,0.00016373,2]
[403885965,1769629832772,-164.58158076,0.00016373,2]
[403885966,1769629832782,-177.59767132,0.00016373,2]
[403885967,1769629832793,-225.32125281,0.00016373,2]
[403885968,1769629832804,-500.0,0.00016373,2]
[403885969,1769629832817,-500.75682028,0.00016373,2]
[403885970,1769629832838,-489.57842878,0.00016373,2]
[403885971,1769629832848,-500.0,0.00016373,2]
[403885972,1769629832860,-169.56220495,0.00016373,2]
[403885973,1769629832871,-500.0,0.00016373,2]
[403885974,1769629832882,-500.0,0.00016373,2]
[403885975,1769629832893,-217.52139056,0.00016373,2]
[403885976,1769629832905,-500.0,0.00016373,2]
[403885977,1769629832916,-503.02903495,0.00016373,2]
[403885978,1769629832927,-500.0,0.00016373,2]
[403885979,1769629832937,-500.0,0.00016373,2]
[403885980,1769629832949,-163.79937598,0.00016373,2]
[403885981,1769629832962,-500.0,0.00016373,2]
[403885982,1769629832972,-500.0,0.00016373,2]
[403885983,1769629832984,-500.0,0.00016373,2]
[403885984,1769629832995,-500.0,0.00016373,2]
[403885985,1769629833006,-500.0,0.00016373,2]
[403885986,1769629833016,-500.0,0.00016373,2]
[403885987,1769629833028,-500.0,0.00016373,2]
[403885988,1769629833039,-500.0,0.00016373,2]
[403885989,1769629833051,-500.0,0.00016373,2]
[403885990,1769629833062,-166.30092719,0.00016373,2]
[403885991,1769629833073,-500.0,0.00016373,2]
[403885992,1769629833085,-166.72072685,0.00016373,2]
[403885993,1769629833097,-500.0,0.00016373,2]
[403885994,1769629833108,-988.38,0.00016373,2]
[403885995,1769629833120,-1852.42,0.00016574,2]
[403885996,1769629833132,-166.66,0.00016644,2]
[403885997,1769629833143,-988.38,0.00016647,2]
[403885998,1769629833154,-150.0,0.00016654,2]
[403885999,1769629833165,-5303.91,0.00016787,2]
[403886000,1769629833176,-1000.0,0.00016921,2]
[403886001,1769629833187,-1000.0,0.00016921,2]
[403886002,1769629833197,-1000.0,0.00016921,2]
[403886003,1769629833209,-1000.0,0.00016921,2]
[403886004,1769629833219,-875.92645048,0.00016921,2]
[403886005,1769629833232,-1000.0,0.00016921,2]
[403886006,1769629833243,-1000.0,0.00016921,2]
[403886007,1769629833252,-1000.0,0.00016921,2]
[403886008,1769629833262,-303.1127939,0.00016921,2]
[403886009,1769629833273,-1000.0,0.00016921,2]
[403886010,1769629833285,-1000.0,0.00016921,2]
[403886011,1769629833296,-239.451786,0.00016921,2]
[403886012,1769629833306,-1007.32533855,0.00016921,2]
[403886013,1769629833317,-1000.0,0.00016921,2]
[403886014,1769629833328,-1000.0,0.00016921,2]
[403886015,1769629833339,-1000.0,0.00016921,2]
[403886016,1769629833349,-1000.0,0.00016921,2]
[403886017,1769629833360,-1000.0,0.00016921,2]
[403886018,1769629833370,-988.38,0.00016921,2]
[403886019,1769629833381,-166.66,0.0001698,2]
[403886020,1769629833391,-154.01,0.00017039,2]
[403886021,1769629833402,-2959.25,0.00017178,2]
[403886022,1769629833413,-988.38,0.00017195,2]
[403886023,1769629833424,-500.0,0.00017292,2]
[403886024,1769629833435,-500.0,0.00017292,2]
[403886025,1769629833446,-500.0,0.00017292,2]
[403886026,1769629833459,-500.0,0.00017292,2]
[403886027,1769629833470,-500.0,0.00017292,2]
[403886028,1769629833481,-500.0,0.00017292,2]
[403886029,1769629833492,-500.0,0.00017292,2]
[403886030,1769629833503,-1758.72576302,0.00017293,2]
[403886031,1769629833518,-1254.41808677,0.00017293,2]
[403886032,1769629833531,-404.35615021,0.00017293,2]
[403886033,1769629833542,-166.66,0.00017317,2]
[403886034,1769629833554,-176.54,0.00017324,2]
[403886035,1769629833566,-988.38,0.00017468,2]
[403886036,1769629833577,-1500.0,0.00017468,2]
[403886037,1769629833588,-1500.0,0.00017468,2]
[403886038,1769629833599,-1500.0,0.00017468,2]
[403886039,1769629833610,-484.2666436,0.00017468,2]
[403886040,1769629833621,-1422.23642081,0.00017468,2]
[403886041,1769629833632,-1500.0,0.00017468,2]
[403886042,1769629833643,-1500.0,0.00017468,2]
[403886043,1769629833664,-247.57411083,0.00017511,2]
[403886044,1769629833681,-653.35199548,0.00017511,2]
[403886045,1769629833695,-1152.59036431,0.00017511,2]
[403886046,1769629833709,-1724.20625311,0.00017511,2]
[403886047,1769629833722,-2332.9053,0.00017511,2]
[403886048,1769629833734,-152.18149603,0.00017572,2]
[403886049,1769629833747,-150.0,0.00017572,2]
[403886050,1769629833759,-500.0,0.00017572,2]
[403886051,1769629833771,-36.97129007,0.00017572,2]
[403886052,1769629833799,-404.2,0.00017292,2]
[403886056,1769629838117,-145.8,0.00017292,2]
[403886057,1769629838129,-331.01295156,0.00017572,2]
[403886058,1769629838171,-132.01575837,0.00017572,2]
[403886059,1769629838183,-150.0,0.00017627,2]
[403886060,1769629838195,-500.0,0.00017627,2]
[403886061,1769629838207,-289.09613186,0.00017627,2]
[403886062,1769629838222,-210.90386814,0.00017627,2]
[403886063,1769629838234,-166.66,0.00017653,2]
[403886064,1769629838246,-200.0,0.00017682,2]
[403886065,1769629838259,-62.83360814,0.00017682,2]
[403886066,1769629838273,-437.16639186,0.00017682,2]
[403886067,1769629838285,-400.41115039,0.00017682,2]
[403886068,1769629838299,-99.58884961,0.00017682,2]
[403886069,1769629838311,-500.0,0.00017736,2]
[403886070,1769629838323,-500.0,0.00017736,2]
[403886071,1769629838335,-988.38,0.00017742,2]
[403886072,1769629838347,-500.0,0.00017791,2]
[403886073,1769629838364,-500.0,0.00017791,2]
[403886074,1769629838376,-500.0,0.00017846,2]
[403886076,1769629838388,-500.0,0.00017846,2]
[403886078,1769629838400,-160.57192082,0.000179,2]
[403886081,1769629838412,-245.30542667,0.000179,2]
[403886083,1769629838424,-13107.24215974,0.000179,2]
[403886085,1769629838438,-866.62642703,0.000179,2]
[403886088,1769629838451,-500.0,0.00017901,2]
[403886090,1769629838464,-500.0,0.00017901,2]
[403886092,1769629838476,-500.0,0.00017956,2]
[403886094,1769629838487,-500.0,0.00017956,2]
[403886097,1769629838500,-155.60519804,0.0001799,2]
[403886099,1769629838512,-155.60519804,0.0001799,2]
[403886101,1769629838524,-152.21,0.0001799,2]
[403886103,1769629838536,-152.21,0.0001799,2]
[403886106,1769629838548,-152.21,0.0001799,2]
[403886108,1769629838560,-152.21,0.0001799,2]
[403886110,1769629838571,-152.21,0.0001799,2]
[403886112,1769629838583,-152.21,0.0001799,2]
[403886115,1769629838595,-152.21,0.0001799,2]
[403886117,1769629838606,-152.21,0.0001799,2]
[403886119,1769629838618,-152.21,0.0001799,2]
[403886121,1769629838629,-152.21,0.0001799,2]
[403886124,1769629838641,-152.21,0.0001799,2]
[403886126,1769629838652,-152.21,0.0001799,2]
[403886128,1769629838663,-26464.2607278,0.00017996,2]
[403886130,1769629838677,-7715.8479148,0.00017996,2]
[403886132,1769629838688,-29540.7847779,0.00017996,2]
[403886134,1769629838699,-151.0,0.00017997,2]
[403886137,1769629838714,-500.0,0.00017999,2]
[403886139,1769629838726,-500.0,0.00017999,2]
[403886141,1769629838738,-500.0,0.00017999,2]
[403886144,1769629838751,-500.0,0.00017999,2]
[403886146,1769629838763,-500.0,0.00017999,2]
[403886148,1769629838775,-169.85340425,0.00017999,2]
[403886150,1769629838787,-500.0,0.00017999,2]
[403886152,1769629838798,-500.0,0.00017999,2]
[403886155,1769629838810,-500.0,0.00017999,2]
[403886156,1769629838822,-545.04649337,0.00017999,2]
[403886158,1769629838833,-500.0,0.00017999,2]
[403886160,1769629838845,-500.0,0.00017999,2]
[403886162,1769629838857,-500.0,0.00017999,2]
[403886165,1769629838868,-500.0,0.00017999,2]
[403886167,1769629838880,-568.58467958,0.00017999,2]
[403886169,1769629838892,-500.0,0.00017999,2]
[403886171,1769629838907,-500.0,0.00017999,2]
[403886174,1769629838919,-385.18354163,0.00017999,2]
[403886176,1769629838930,-166.37398015,0.00017999,2]
[403886178,1769629838942,-531.00846507,0.00017999,2]
[403886180,1769629838953,-298.742,0.00017999,2]
[403886182,1769629838965,-150.0,0.00017999,2]
[403886185,1769629838977,-150.0,0.00017999,2]
[403886187,1769629838988,-150.0,0.00017999,2]
[403886189,1769629838999,-2111294.17754032,0.00018,2]
[403886191,1769629839012,-1277864.50183763,0.00018,2]
[403886193,1769629839024,-2032475.60084424,0.00018,2]
[403886196,1769629839035,-2646.79155626,0.00018,2]
[403886198,1769629839046,-187.547238,0.00018,2]
[403886200,1769629839057,-200.0,0.00018,2]
[403886202,1769629839068,-151.0,0.00018,2]
[403886204,1769629839079,-151.0,0.00018,2]
[403886207,1769629839095,-214.296415,0.00018,2]
[403886209,1769629839106,-214.296415,0.00018,2]
[403886211,1769629839118,-214.296415,0.00018,2]
[403886214,1769629839131,-214.296415,0.00018,2]
[403886216,1769629839142,-504.0,0.00018,2]
[403886218,1769629839153,-151.0,0.00018,2]
[403886220,1769629839163,-151.0,0.00018,2]
[403886222,1769629839175,-151.0,0.00018,2]
[403886224,1769629839186,-183.823457,0.00018,2]
[403886227,1769629839197,-218.159228,0.00018,2]
[403886375,1769629840530,-218.159228,0.00018,2]
[403886379,1769629840563,-218.159228,0.00018,2]
[403886384,1769629840593,-218.159228,0.00018,2]
[403886387,1769629840618,-1234.1,0.00018,2]
[403886389,1769629840627,-1234.1,0.00018,2]
[403886391,1769629840637,-1234.1,0.00018,2]
[403886393,1769629840647,-1234.1,0.00018,2]
[403886395,1769629840657,-1234.1,0.00018,2]
[403886398,1769629840667,-1234.1,0.00018,2]
[403886400,1769629840680,-1234.1,0.00018,2]
[403886401,1769629840689,-1234.1,0.00018,2]
[403886403,1769629840699,-1366.64,0.00018,2]
[403886405,1769629840708,-500.0,0.0001801,2]
[403886407,1769629840719,-500.0,0.0001801,2]
[403886408,1769629840729,-988.38,0.00018016,2]
[403886410,1769629840739,-2000.0,0.00018016,2]
[403886411,1769629840748,-446.80273923,0.00018016,2]
[403886412,1769629840758,-2000.0,0.00018016,2]
[403886413,1769629840768,-2000.0,0.00018016,2]
[403886415,1769629840778,-2000.0,0.00018016,2]
[403886417,1769629840787,-176.54,0.00018039,2]
[403886418,1769629840796,-168.0,0.0001806,2]
[403886420,1769629840806,-250.0,0.00018065,2]
[403886422,1769629840816,-500.0,0.00018065,2]
[403886424,1769629840825,-200.0,0.00018082,2]
[403886425,1769629840835,-500.0,0.0001812,2]
[403886426,1769629840844,-168.0,0.00018148,2]
[403886427,1769629840854,-168.0,0.0001815,2]
[403886428,1769629840864,-517.85965192,0.00018175,2]
[403886429,1769629840873,-200.0,0.0001818,2]
[403886430,1769629840883,-155.0,0.00018256,2]
[403886431,1769629840892,-154.01,0.00018256,2]
[403886432,1769629840902,-168.0,0.00018276,2]
[403886433,1769629840911,-988.45,0.0001829,2]
[403886434,1769629840921,-168.0,0.0001832,2]
[403886435,1769629840931,-168.0,0.00018342,2]
[403886436,1769629840940,-800.22,0.00018355,2]
[403886437,1769629840949,-200.0,0.00018362,2]
[403886438,1769629840959,-168.0,0.00018402,2]
[403886439,1769629840968,-168.0,0.00018437,2]
[403886440,1769629840978,-168.0,0.00018447,2]
[403886441,1769629840987,-168.0,0.00018448,2]
[403886442,1769629840997,-150.0,0.000185,2]
[403886443,1769629841008,-150.0,0.000185,2]
[403886444,1769629841018,-155.0,0.00018513,2]
[403886445,1769629841027,-200.0,0.00018545,2]
[403886446,1769629841036,-1631.17868896,0.00018564,2]
[403886447,1769629841046,-2408.40901104,0.00018564,2]
[403886448,1769629841056,-2500.0,0.00018564,2]
[403886449,1769629841065,-2500.0,0.00018564,2]
[403886450,1769629841075,-168.0,0.00018728,2]
[403886451,1769629841084,-176.54,0.00018754,2]
[403886452,1769629841094,-155.0,0.0001877,2]
[403886453,1769629841104,-168.0,0.00018775,2]
[403886454,1769629841114,-150.00325586,0.00018918,5]
[403886455,1769629841123,-168.0,0.00019015,2]
[403886456,1769629841133,-155.0,0.00019028,2]
[403886457,1769629841143,-168.0,0.00019062,2]
[403886458,1769629841154,-152.21,0.00019102,2]
[403886459,1769629841166,-3000.0,0.00019112,2]
[403886460,1769629841185,-3000.0,0.00019112,2]
[403886461,1769629841194,-500.0,0.00019178,2]
[403886462,1769629841204,-500.0,0.00019178,2]
[403886463,1769629841227,-291.76806807,0.00019178,2]
[403886464,1769629841237,-151.0,0.00019178,2]
[403886465,1769629841247,-168.0,0.00019237,2]
[403886466,1769629841257,-155.0,0.00019285,2]
[403886467,1769629841267,-1000.0,0.00019321,2]
[403886468,1769629841276,-168.0,0.00019351,2]
[403886469,1769629841287,-168.0,0.00019396,2]
[403886470,1769629841296,-168.0,0.00019435,2]
[403886471,1769629841305,-176.54,0.00019469,2]
[403886472,1769629841315,-154.01,0.00019474,2]
[403886473,1769629841324,-168.0,0.00019523,2]
[403886474,1769629841333,-1606.0,0.00019537,2]
[403886475,1769629841343,-155.0,0.00019542,2]
[403886476,1769629841352,-168.0,0.00019625,2]
[403886477,1769629841362,-168.0,0.0001964,2]
[403886478,1769629841372,-1140.51837004,0.0001966,2]
[403886479,1769629841382,-1000.96059659,0.0001966,2]
[403886480,1769629841392,-155.0,0.00019799,2]
[403886481,1769629841402,-250.0,0.0002015,2]
[403886482,1769629841412,-176.54,0.00020184,2]
[403886483,1769629841421,-150.00325586,0.00020254,10]
[403886484,1769629841431,-5904.9747344,0.00020275,2]
[403886485,1769629841441,-1721.6383809,0.00020275,2]
[403886486,1769629841450,-6591.4400384,0.00020275,2]
[403886487,1769629841460,-800.22,0.00020394,2]
[403886488,1769629841469,-1606.0,0.00020477,2]
[403886489,1769629841479,-1606.0,0.00020485,2]
[403886490,1769629841488,-150.0,0.000205,2]
[403886491,1769629841498,-154.01,0.00020691,2]
[403886492,1769629841508,-1317.5779581,0.00020784,2]
[403886493,1769629841518,-384.1494476,0.00020784,2]
[403886494,1769629841528,-1470.7490713,0.00020784,2]
[403886495,1769629841537,-158.77791206,0.00020888,2]
[403886496,1769629841546,-500.0,0.00021,2]
[403886497,1769629841556,-1606.0,0.00021174,2]
[403886498,1769629841566,-1000.0,0.00021468,2]
[403886499,1769629841575,-150.00325586,0.00021591,14]
[403886500,1769629841586,-155.0,0.00021599,2]
[403886501,1769629841595,-487.62,0.00021892,2]
[403886502,1769629841605,-154.01,0.00021908,2]
[403886503,1769629841615,-5000.0,0.00021918,2]
[403886504,1769629841624,-499.999999,0.00021973,2]
[403886505,1769629841634,-160.09424111,0.00021973,2]
[403886506,1769629841644,-454.62309315,0.00021973,2]
[403886507,1769629841654,-162.07,0.000221,7]
[403886508,1769629841663,-487.62,0.00022166,2]
[403886509,1769629841673,-183.1134535,0.00022275,2]
[403886510,1769629841687,-179.30657264,0.00022275,2]
[403886511,1769629841696,-800.22,0.00022434,2]
[403886512,1769629841706,-487.62,0.0002244,2]
[403886513,1769629841716,-218.28,0.00022714,2]
[403886514,1769629841726,-150.00325586,0.00022927,19]
[403886515,1769629841736,-160.57192077,0.00023003,2]
[403886516,1769629841746,-154.01,0.00023125,2]
[403886517,1769629841756,-1000.0,0.00023615,2]
[403886518,1769629841765,-3417.5,0.0002421,2]
[403886519,1769629841775,-150.00325586,0.00024263,23]
[403886520,1769629841785,-500.0,0.00024274,2]
[403886521,1769629841794,-245.30542666,0.00024286,2]
[403886522,1769629841804,-154.01,0.00024342,2]
[403886523,1769629841813,-800.22,0.00024473,2]
[403886524,1769629841823,-181.44842283,0.0002463,2]
[403886525,1769629841832,-1000.0,0.00024658,2]
[403886526,1769629841848,-155.0,0.00025199,2]
[403886527,1769629841868,-154.01,0.00025559,2]
[403886528,1769629841879,-150.00325586,0.000256,28]
[403886529,1769629841889,-1000.0,0.00025762,2]
[403886530,1769629841898,-158.77791206,0.0002611,2]
[403886531,1769629841908,-11313.0,0.00026381,2]
[403886532,1769629841918,-305.37481683,0.00026927,2]
[403886533,1769629841927,-150.00325586,0.00026936,32]
[403886534,1769629841937,-150.0,0.00027369,2]
[403886535,1769629841947,-241.93123044,0.0002737,30]
[403886536,1769629841956,-300.0,0.00027397,2]
[403886537,1769629841967,-151.0,0.00027397,7]
[403886538,1769629841976,-151.0,0.00027397,7]
[403886539,1769629841985,-750.0,0.00027397,20]
[403886540,1769629841995,-174.76,0.00027929,2]
[403886541,1769629842005,-160.57192077,0.00028105,2]
[403886542,1769629842015,-150.00325586,0.00028272,35]
[403886543,1769629842025,-337.52,0.0002901,2]
[403886544,1769629842035,-500.0,0.00029202,2]
[403886545,1769629842044,-346.0,0.000293,5]
[403886546,1769629842054,-564.0,0.00029342,2]
[403886547,1769629842067,-150.00325586,0.00029609,39]
[403886548,1769629842076,-1000.0,0.00029709,2]
[403886549,1769629842085,-1364.94,0.00030065,120]
[403886550,1769629842094,-12520.94,0.00030463,2]
[403886551,1769629842104,-245.30542666,0.00030672,2]
[403886552,1769629842114,-1468.33383863,0.00030672,2]
[403886553,1769629842124,-1000.0,0.00030823,2]